bitfinex/quotes_BTCUSD_20251207
["timestamp","ask_amount","ask_price","bid_price","bid_amount"]
[1765149990787,0.05948,90009.0,90006.0,0.01111037]
[1765149990992,0.23331263,90008.0,90005.0,0.01111049]
[1765149991196,0.01111012,90008.0,90005.0,0.01111049]
[1765149991599,0.01111012,90008.0,90003.0,0.01511074]
[1765149991780,0.11077012,90008.0,90003.0,0.01111074]
[1765149991980,0.01111012,90008.0,90004.0,0.01111061]
[1765149992204,0.04837,90009.0,90006.0,0.01111037]
[1765149992455,0.0111095,90013.0,90009.0,0.01111]
[1765149992601,0.01110962,90012.0,90008.0,0.01111012]
[1765149992802,0.04837,90009.0,90006.0,0.01111037]
[1765149993009,0.07616024,90007.0,90004.0,0.00161287]
[1765149993221,0.06505,90005.0,90004.0,0.00161287]
[1765149994381,0.28725987,90005.0,90004.0,0.00161287]
[1765149994580,0.06505,90005.0,90004.0,0.00161287]
[1765149994893,0.06505,90005.0,90004.0,0.00461287]
[1765149995127,0.01111012,90008.0,90005.0,0.01111049]
[1765149996340,0.28168007,90009.0,90005.0,0.01111049]
[1765149996341,0.04837,90009.0,90006.0,0.01111037]
[1765149997112,0.001,90008.0,90006.0,0.01111037]
[1765149997452,0.04837,90009.0,90007.0,0.00068932]
[1765149997453,0.05948,90009.0,90007.0,0.00068932]
[1765149997676,0.01111012,90008.0,90005.0,0.01111049]
[1765149998016,0.01111012,90008.0,90007.0,0.00068932]
[1765149998218,0.04937,90009.0,90007.0,0.00068932]
[1765149998366,0.04837,90009.0,90006.0,0.01111037]
[1765149998565,0.04837,90009.0,90008.0,0.00065935]
[1765149999354,0.04837,90034.0,90021.0,0.22216949]
[1765149999535,0.04837,90034.0,90021.0,0.01110851]
[1765149999536,0.01110802,90025.0,90021.0,0.01110851]
[1765149999741,0.0111079,90026.0,90022.0,0.03710839]
[1765149999942,0.01110802,90025.0,90022.0,0.03710839]
[1765150000436,0.07615827,90023.0,90019.0,0.04103933]
[1765150000861,0.06505,90023.0,90020.0,0.23328149]
[1765150001067,0.01110827,90023.0,90019.0,0.04103933]
[1765150001212,0.06505,90020.0,90019.0,0.02993057]
[1765150001855,0.01110827,90023.0,90021.0,0.01110851]
[1765150001856,0.004,90023.0,90021.0,0.01110851]
[1765150002216,0.002,90023.0,90022.0,0.03710839]
[1765150003600,0.0111079,90026.0,90023.0,0.23327353]
[1765150003748,0.01110716,90032.0,90027.0,0.22215535]
[1765150003943,0.00011748,90030.0,90027.0,0.23326312]
[1765150004171,0.00011748,90030.0,90029.0,0.27415064]
[1765150004369,0.00011748,90030.0,90029.0,0.29796749]
[1765150004575,0.00011748,90030.0,90029.0,0.34996749]
[1765150005174,0.00011748,90030.0,90029.0,0.36761984]
[1765150005380,0.00011748,90030.0,90029.0,0.36743984]
[1765150005782,0.00011748,90030.0,90029.0,0.39364382]
[1765150006064,0.00011748,90030.0,90029.0,0.38964382]
[1765150006278,0.00011748,90030.0,90029.0,0.32758351]
[1765150006481,0.00011748,90030.0,90029.0,0.34978749]
[1765150006616,0.00011748,90030.0,90029.0,0.29778749]
[1765150007035,0.00011748,90030.0,90029.0,0.35860749]
[1765150007231,0.00011748,90030.0,90029.0,0.36660749]
[1765150007437,0.00011748,90030.0,90029.0,0.34960749]
[1765150008020,0.00011748,90030.0,90029.0,0.37560749]
[1765150008219,0.00011748,90030.0,90029.0,0.38460749]
[1765150009047,0.00011748,90030.0,90029.0,0.33278749]
[1765150009660,0.00011748,90030.0,90029.0,0.32378749]
[1765150010097,0.00011748,90030.0,90029.0,0.36163208]
[1765150010296,0.00011748,90030.0,90029.0,0.08743287]
[1765150010431,0.00011748,90030.0,90029.0,0.03561287]
[1765150010633,0.15619748,90030.0,90029.0,0.034]
[1765150011006,0.22179956,90030.0,90029.0,0.034]
[1765150011132,0.15619748,90030.0,90029.0,0.034]
[1765150011339,0.15619748,90030.0,90022.0,0.00023973]
[1765150011340,0.22216544,90023.0,90022.0,0.00023973]
[1765150011560,0.31478544,90023.0,90022.0,0.00023973]
[1765150011760,0.40513544,90023.0,90022.0,0.00023973]
[1765150012844,0.31478544,90023.0,90022.0,0.00023973]
[1765150013048,0.22216544,90023.0,90022.0,0.00023973]
[1765150013193,0.28789544,90023.0,90022.0,0.00023973]
[1765150013411,0.37824544,90023.0,90022.0,0.00023973]
[1765150013592,0.37824544,90023.0,90022.0,0.00923973]
[1765150014011,0.37824544,90023.0,90022.0,0.00023973]
[1765150014211,0.37824544,90023.0,90022.0,0.00523973]
[1765150015996,0.01110802,90025.0,90022.0,0.00523973]
[1765150016159,0.2332687,90025.0,90022.0,0.00523973]
[1765150016406,0.22216541,90024.0,90022.0,0.00523973]
[1765150017039,0.22216541,90024.0,90022.0,0.00023973]
[1765150017461,0.22216541,90024.0,90022.0,0.00423973]
[1765150017672,0.22216541,90024.0,90022.0,0.00023973]
[1765150017882,0.15694,90023.0,90022.0,0.00023973]
[1765150018088,0.15694,90023.0,90022.0,0.00423973]
[1765150018307,0.06067,90023.0,90022.0,0.00423973]
[1765150019377,0.04968,90026.0,90023.0,0.23327371]
[1765150019590,0.04968,90026.0,90023.0,0.01110827]
[1765150019818,0.04968,90026.0,90024.0,0.22216064]
[1765150020504,0.05068,90026.0,90024.0,0.22377351]
[1765150020715,0.05068,90026.0,90025.0,0.12283685]
[1765150020716,0.001,90026.0,90025.0,0.12283685]
[1765150021141,0.00011748,90030.0,90029.0,0.28467363]
[1765150021354,0.00011748,90030.0,90029.0,0.68100048]
[1765150021779,0.00011748,90030.0,90029.0,0.73051048]
[1765150022521,0.00011748,90030.0,90029.0,0.79032431]
[1765150023187,0.00011748,90030.0,90029.0,0.74051048]
[1765150023316,0.00011748,90030.0,90029.0,0.80017701]
[1765150024851,0.00011748,90030.0,90029.0,0.83017701]
[1765150025249,0.00011748,90030.0,90029.0,0.77051048]
[1765150025504,0.00011748,90030.0,90029.0,0.76533773]
[1765150025631,0.00011748,90030.0,90029.0,0.78754171]
[1765150025834,0.00011748,90030.0,90029.0,0.7986464]
[1765150028822,0.0009461,90046.0,90045.0,0.56731514]
[1765150029018,0.0009461,90046.0,90045.0,0.698561]
[1765150029198,0.0009461,90046.0,90045.0,0.8275632]
[1765150029435,0.0009461,90046.0,90045.0,0.748071]
[1765150029652,1e-08,90046.0,90045.0,0.748071]
[1765150029859,0.0002,90080.0,90079.0,0.24423131]
[1765150030074,0.0002,90080.0,90079.0,0.29374131]
[1765150030283,0.0002,90080.0,90079.0,0.34486418]
[1765150030492,0.0002,90080.0,90079.0,0.38518319]
[1765150030920,0.0002,90080.0,90079.0,0.33567319]
[1765150031127,0.0002,90080.0,90079.0,0.28616319]
[1765150031354,0.07197124,90080.0,90074.0,0.23314018]
[1765150031571,0.06078136,90079.0,90073.0,0.07362509]
[1765150031790,0.05819,90073.0,90070.0,0.01110247]
[1765150031994,0.01110185,90075.0,90070.0,0.23315198]
[1765150032143,0.0002,90080.0,90076.0,0.23313645]
[1765150032348,0.01130124,90080.0,90077.0,0.01110161]
[1765150033186,0.01130124,90080.0,90079.0,0.004]
[1765150033393,0.0002,90080.0,90079.0,0.004]
[1765150033594,0.01130124,90080.0,90076.0,0.01110173]
[1765150033796,0.01130124,90080.0,90075.0,0.01110185]
[1765150033797,0.01110148,90078.0,90077.0,0.002]
[1765150033973,0.22202733,90079.0,90077.0,0.002]
[1765150034173,0.01110173,90076.0,90073.0,0.0111021]
[1765150034580,0.01130124,90080.0,90074.0,0.01110198]
[1765150034785,0.01110148,90078.0,90075.0,0.01110185]
[1765150034983,0.0002,90080.0,90077.0,0.01410161]
[1765150035183,0.0002,90080.0,90077.0,0.003]
[1765150035408,0.00121799,90080.0,90077.0,0.003]
[1765150035584,0.0002,90080.0,90077.0,0.003]
[1765150035795,0.01130124,90080.0,90077.0,0.003]
[1765150035972,0.01130124,90080.0,90077.0,0.01410161]
[1765150036179,0.01130124,90080.0,90077.0,0.01110161]
[1765150036381,0.22202733,90079.0,90073.0,0.0111021]
[1765150036579,0.22203226,90077.0,90073.0,0.001]
[1765150036794,0.0111021,90073.0,90070.0,0.23837447]
[1765150036998,0.0111021,90073.0,90069.0,0.01110259]
[1765150037651,0.0111021,90073.0,90072.0,0.04404]
[1765150037860,0.01110099,90082.0,90077.0,0.23313374]
[1765150038185,0.01110087,90083.0,90077.0,0.23313374]
[1765150038387,0.01110099,90082.0,90077.0,0.23313374]
[1765150038584,0.23311032,90087.0,90079.0,0.22202733]
[1765150038817,0.01110075,90084.0,90079.0,0.22202733]
[1765150039033,0.01110099,90082.0,90077.0,0.23313374]
[1765150039255,0.01110099,90082.0,90079.0,0.22202733]
[1765150039455,0.01110038,90087.0,90079.0,0.22202733]
[1765150039676,0.154,90080.0,90075.0,0.01110185]
[1765150039875,0.154,90080.0,90074.0,0.01110198]
[1765150039876,0.10293,90076.0,90074.0,0.01110198]
[1765150040211,0.01110321,90064.0,90059.0,0.01110383]
[1765150040523,0.01110346,90062.0,90058.0,0.01110395]
[1765150040728,0.01110469,90052.0,90044.0,0.25186593]
[1765150040874,0.04474,90059.0,90051.0,0.01110481]
[1765150040875,0.01110444,90054.0,90051.0,0.01110481]
[1765150041075,0.05584383,90059.0,90051.0,0.01110481]
[1765150041076,0.27792088,90059.0,90051.0,0.23320057]
[1765150041314,0.05584383,90059.0,90055.0,0.01110432]
[1765150041477,0.01110395,90058.0,90055.0,0.01110432]
[1765150041691,0.01110407,90057.0,90054.0,0.01110444]
[1765150042108,0.0111042,90056.0,90053.0,0.01110457]
[1765150042308,0.2331884,90056.0,90053.0,0.01110457]
[1765150042530,0.2331884,90056.0,90052.0,0.01110469]
[1765150042531,0.01110457,90053.0,90041.0,0.02975403]
[1765150042723,0.01110457,90053.0,90049.0,0.01110506]
[1765150042724,0.01110469,90052.0,90049.0,0.01110506]
[1765150042961,0.10293,90047.0,90044.0,0.23321741]
[1765150043305,0.10293,90047.0,90046.0,0.22210869]
[1765150043764,0.04474,90047.0,90046.0,0.22210869]
[1765150044102,0.04474,90047.0,90044.0,0.23321741]
[1765150044301,0.04474,90047.0,90044.0,0.23421741]
[1765150044506,0.04474,90047.0,90046.0,0.22210869]
[1765150045817,0.04474,90047.0,90046.0,0.22310869]
[1765150046110,0.04474,90047.0,90046.0,0.22210869]
[1765150046322,0.0002396,90054.0,90049.0,0.01110506]
[1765150047338,0.01110481,90051.0,90047.0,0.01110531]
[1765150047542,0.32904449,90054.0,90048.0,0.01110518]
[1765150047965,0.01110481,90051.0,90048.0,0.01110518]
[1765150048514,0.32904326,90054.0,90050.0,0.01110494]
[1765150048656,0.01110469,90052.0,90049.0,0.01110506]
[1765150049701,0.01110457,90053.0,90049.0,0.01110506]
[1765150050023,0.10695404,90054.0,90051.0,0.01110481]
[1765150050434,0.10695404,90054.0,90050.0,0.01110494]
[1765150050767,0.10695404,90054.0,90049.0,0.01110506]
[1765150050768,0.01110457,90053.0,90049.0,0.01110506]
[1765150050978,0.01110506,90049.0,90047.0,0.02975403]
[1765150051198,0.01110506,90049.0,90048.0,0.02975403]
[1765150051529,0.01110457,90053.0,90048.0,0.02975403]
[1765150051530,0.01110469,90052.0,90048.0,0.04085921]
[1765150051734,0.01110469,90052.0,90049.0,0.01110506]
[1765150051966,0.01110457,90053.0,90049.0,0.23320617]
[1765150052168,0.01110457,90053.0,90049.0,0.01110506]
[1765150052375,0.0002396,90054.0,90052.0,0.22209383]
[1765150052929,0.0002396,90054.0,90050.0,0.23320377]
[1765150052930,0.05819,90053.0,90050.0,0.01110494]
[1765150054375,0.06929457,90053.0,90050.0,0.01110494]
[1765150054671,0.01110469,90052.0,90049.0,0.02975403]
[1765150054875,0.05819,90050.0,90049.0,0.02975403]
[1765150055090,0.05819,90050.0,90048.0,0.02975403]
[1765150055299,0.04474,90049.0,90047.0,0.23321111]
[1765150055458,0.06929518,90048.0,90047.0,0.02986932]
[1765150055874,0.06929518,90048.0,90046.0,0.02986932]
[1765150056072,0.09561,90047.0,90046.0,0.02986932]
[1765150056274,0.05819,90047.0,90046.0,0.25197801]
[1765150056482,0.04474,90049.0,90046.0,0.23321412]
[1765150056689,0.27794867,90049.0,90044.0,0.01110568]
[1765150056896,0.05819,90045.0,90043.0,0.02986932]
[1765150057074,0.05819,90044.0,90043.0,0.02986932]
[1765150057258,0.04474,90049.0,90046.0,0.01110543]
[1765150057459,0.22207922,90058.0,90046.0,0.01110543]
[1765150057460,0.22207922,90058.0,90051.0,0.01110481]
[1765150057714,0.01134404,90054.0,90051.0,0.01110481]
[1765150058017,0.01110457,90053.0,90050.0,0.01110494]
[1765150058250,0.10293,90049.0,90046.0,0.01210543]
[1765150058459,0.05819,90048.0,90045.0,0.23321568]
[1765150058871,0.04474,90049.0,90047.0,0.22210623]
[1765150059857,0.0002396,90054.0,90052.0,0.22209153]
[1765150060467,0.0002396,90054.0,90048.0,0.01110518]
[1765150060468,0.01110469,90052.0,90048.0,0.01110518]
[1765150060639,0.04474,90049.0,90048.0,0.01110518]
[1765150061448,0.19854,90049.0,90045.0,0.02986932]
[1765150061678,0.05819,90046.0,90045.0,0.02986932]
[1765150061884,0.22211116,90045.0,90044.0,0.02986932]
[1765150062040,0.04474,90049.0,90047.0,0.22210552]
[1765150062241,0.33304213,90079.0,90048.0,0.04641805]
[1765150062458,0.0002,90080.0,90048.0,0.04641805]
[1765150062459,0.01110185,90075.0,90069.0,0.26649286]
[1765150062677,0.01110185,90075.0,90070.0,0.01110247]
[1765150062678,0.01110198,90074.0,90070.0,0.01110247]
[1765150062878,0.05952,90070.0,90065.0,0.01110309]
[1765150063079,0.01568,90066.0,90065.0,0.01110309]
[1765150063294,0.0752,90066.0,90065.0,0.01110309]
[1765150064369,0.0752,90066.0,90065.0,0.04097214]
[1765150064598,0.01568,90066.0,90065.0,0.04097214]
[1765150064776,0.0002,90080.0,90077.0,0.01110161]
[1765150064991,0.0002,90080.0,90077.0,0.23313206]
[1765150065344,0.0002,90080.0,90079.0,0.03346]
[1765150065543,0.0002,90080.0,90079.0,0.03507287]
[1765150065744,0.0002,90080.0,90079.0,0.15325984]
[1765150067750,0.0002,90080.0,90079.0,0.17825984]
[1765150068163,0.0002,90080.0,90079.0,0.15325984]
[1765150068409,0.00097843,90080.0,90079.0,0.18425984]
[1765150068852,0.00097843,90080.0,90079.0,0.14279984]
[1765150069314,0.00097843,90080.0,90079.0,0.15079984]
[1765150069513,0.00097843,90080.0,90079.0,0.18425984]
[1765150069909,0.00097843,90080.0,90079.0,0.19052455]
[1765150070288,0.00097843,90080.0,90079.0,0.19051216]
[1765150070475,0.00097843,90080.0,90079.0,0.15079984]
[1765150070692,0.00097843,90080.0,90079.0,0.19051216]
[1765150071143,0.00097843,90080.0,90079.0,0.22397216]
[1765150071362,0.00097843,90080.0,90079.0,0.18425984]
[1765150071677,0.00097843,90080.0,90079.0,0.15079984]
[1765150071817,0.00097843,90080.0,90079.0,0.09513586]
[1765150072027,0.00097843,90080.0,90079.0,0.16830818]
[1765150072223,0.00097843,90080.0,90079.0,0.18425984]
[1765150072408,0.00097843,90080.0,90079.0,0.17625984]
[1765150072613,0.00097843,90080.0,90079.0,0.21597216]
[1765150072812,0.00097843,90080.0,90079.0,0.22297216]
[1765150073178,0.00097843,90080.0,90079.0,0.18325984]
[1765150073756,0.00097843,90080.0,90079.0,0.16025984]
[1765150073923,0.00097843,90080.0,90079.0,0.40428717]
[1765150074325,0.00097843,90080.0,90079.0,0.70528717]
[1765150074558,0.00097843,90080.0,90079.0,0.78385343]
[1765150074944,0.00097843,90080.0,90079.0,0.82015343]
[1765150075147,0.00097843,90080.0,90079.0,0.76058717]
[1765150075345,0.00097843,90080.0,90079.0,0.82008652]
[1765150076265,0.00097843,90080.0,90079.0,0.76058717]
[1765150076465,0.00097843,90080.0,90079.0,0.75158717]
[1765150076669,0.00097843,90080.0,90079.0,0.72558717]
[1765150076871,0.00097843,90080.0,90079.0,0.81308652]
[1765150077348,0.00097843,90080.0,90079.0,0.75358717]
[1765150077821,0.00097843,90080.0,90079.0,0.76358717]
[1765150078021,0.00016919,90080.0,90079.0,0.76358717]
[1765150079809,0.00016919,90080.0,90079.0,0.73558717]
[1765150080021,0.00016919,90080.0,90079.0,0.75958717]
[1765150080199,0.00016919,90080.0,90079.0,0.71338319]
[1765150080397,0.00016919,90080.0,90079.0,0.73558717]
[1765150080733,0.00016919,90080.0,90079.0,0.75958717]
[1765150080976,0.00016919,90080.0,90079.0,0.69882717]
[1765150081180,0.00016919,90080.0,90079.0,0.68882717]
[1765150081589,0.00016919,90080.0,90079.0,0.09613586]
[1765150081862,0.00016919,90080.0,90079.0,0.03361287]
[1765150082115,0.00016919,90080.0,90079.0,0.02561287]
[1765150082280,0.00016919,90080.0,90079.0,0.08813586]
[1765150082501,0.13838919,90080.0,90079.0,0.032]
[1765150082715,0.36041405,90080.0,90079.0,0.008]
[1765150083049,0.36041405,90080.0,90079.0,0.022]
[1765150083272,0.00016919,90080.0,90078.0,0.24932864]
[1765150083467,0.00016919,90080.0,90078.0,0.0273]
[1765150083468,0.0429,90079.0,90078.0,0.0273]
[1765150083829,0.09895,90079.0,90078.0,0.0273]
[1765150084413,0.0429,90079.0,90078.0,0.24932979]
[1765150084862,0.0429,90079.0,90078.0,0.27032979]
[1765150085062,0.09895,90079.0,90078.0,0.0553]
[1765150085540,0.18112,90079.0,90078.0,0.0553]
[1765150085718,0.18112,90079.0,90078.0,0.028]
[1765150086267,0.09895,90079.0,90078.0,0.028]
[1765150086682,0.09895,90079.0,90078.0,0.007]
[1765150087106,0.18112,90079.0,90078.0,0.007]
[1765150087312,0.18112,90079.0,90068.0,0.02975574]
[1765150087313,0.01110235,90071.0,90068.0,0.02975574]
[1765150087605,0.01110235,90071.0,90067.0,0.01110284]
[1765150087606,0.01110173,90076.0,90072.0,0.01110222]
[1765150087789,0.01110185,90075.0,90071.0,0.01110235]
[1765150088991,0.01110185,90075.0,90071.0,0.23314768]
[1765150089199,0.01110161,90077.0,90072.0,0.2331468]
[1765150089528,0.22203226,90077.0,90072.0,0.2331468]
[1765150089743,0.01110185,90075.0,90072.0,0.01110222]
[1765150089949,0.01110185,90075.0,90068.0,0.02975574]
[1765150089950,0.22204951,90070.0,90068.0,0.02975574]
[1765150090114,0.01110272,90068.0,90065.0,0.02975574]
[1765150090315,0.31532198,90070.0,90066.0,0.0408587]
[1765150090918,0.01110259,90069.0,90066.0,0.0408587]
[1765150091122,0.01110259,90069.0,90068.0,0.002]
[1765150091356,0.01110259,90069.0,90068.0,0.03175574]
[1765150091574,0.05605,90069.0,90068.0,0.03175574]
[1765150092161,0.05605,90069.0,90067.0,0.01110284]
[1765150092363,0.01110284,90067.0,90064.0,0.04044341]
[1765150092680,0.01110272,90068.0,90066.0,0.002]
[1765150092884,0.01110272,90068.0,90065.0,0.01110309]
[1765150094090,0.05725,90066.0,90064.0,0.00077653]
[1765150094284,0.01110272,90068.0,90065.0,0.01310309]
[1765150094604,0.23314325,90074.0,90069.0,0.01110259]
[1765150094964,0.13115,90079.0,90076.0,0.01110173]
[1765150095352,0.05725,90077.0,90076.0,0.01110173]
[1765150095862,0.1455,90077.0,90075.0,0.23313852]
[1765150096076,0.05725,90076.0,90074.0,0.01110198]
[1765150096287,0.05725,90075.0,90074.0,0.01110198]
[1765150096903,0.05725,90075.0,90074.0,0.23314095]
[1765150097129,0.05725,90075.0,90074.0,0.01110198]
[1765150097744,0.05725,90075.0,90072.0,0.23314467]
[1765150099565,0.05725,90075.0,90073.0,0.22203999]
[1765150099768,0.05725,90075.0,90072.0,0.23314467]
[1765150100321,0.27928761,90075.0,90072.0,0.01110222]
[1765150100518,0.29038946,90075.0,90072.0,0.01110222]
[1765150101028,0.01110198,90074.0,90071.0,0.01110235]
[1765150101591,0.01110198,90074.0,90069.0,0.01110259]
[1765150101592,0.23314422,90073.0,90069.0,0.01110259]
[1765150101780,0.0111021,90073.0,90069.0,0.01110259]
[1765150102394,0.0111021,90073.0,90071.0,0.001]
[1765150102594,0.0111021,90073.0,90069.0,0.01110259]
[1765150102979,0.09935198,90074.0,90070.0,0.01110247]
[1765150103194,0.09935198,90074.0,90071.0,0.01110235]
[1765150103395,0.01110185,90075.0,90072.0,0.2331468]
[1765150103610,0.01110075,90084.0,90080.0,0.01110124]
[1765150103824,0.00065125,90083.0,90082.0,0.02220398]
[1765150104146,0.00065125,90083.0,90080.0,0.23312408]
[1765150104292,0.00065125,90083.0,90082.0,0.02393]
[1765150104492,0.00065125,90083.0,90082.0,0.11026984]
[1765150104812,0.00065125,90083.0,90082.0,0.13419984]
[1765150105011,0.00065125,90083.0,90082.0,0.17386672]
[1765150105196,0.00065125,90083.0,90082.0,0.13419984]
[1765150105394,0.00065125,90083.0,90082.0,0.11026984]
[1765150105602,0.00065125,90083.0,90082.0,0.11126984]
[1765150109144,0.00065125,90083.0,90082.0,0.08733984]
[1765150109412,0.00065125,90083.0,90082.0,0.28715579]
[1765150110472,0.00065125,90083.0,90082.0,0.31108579]
[1765150110869,0.00065125,90083.0,90082.0,0.28715579]
[1765150111657,0.00065125,90083.0,90082.0,0.33501579]
[1765150111869,0.00065125,90083.0,90082.0,0.35721977]
[1765150112627,0.00065125,90083.0,90082.0,0.41671912]
[1765150112750,0.00065125,90083.0,90082.0,0.35721977]
[1765150113508,0.00065125,90083.0,90082.0,0.70751977]
[1765150113666,0.00065125,90083.0,90082.0,0.71551977]
[1765150114071,0.00065125,90083.0,90082.0,0.71451977]
[1765150114502,0.00065125,90083.0,90082.0,0.73851977]
[1765150114706,0.00065125,90083.0,90082.0,0.69231579]
[1765150114900,0.00065125,90083.0,90082.0,0.70651977]
[1765150115101,0.00065125,90083.0,90082.0,0.74651977]
[1765150115826,0.00065125,90083.0,90082.0,0.70651977]
[1765150115997,0.00065125,90083.0,90082.0,0.71551977]
[1765150116210,0.00065125,90083.0,90082.0,0.74251977]
[1765150117778,0.00065125,90083.0,90082.0,0.72031579]
[1765150117960,0.00065125,90083.0,90082.0,0.66938579]
[1765150118111,0.00065125,90083.0,90082.0,0.6009328]
[1765150118516,0.00065125,90083.0,90082.0,0.6099328]
[1765150118970,0.00065125,90083.0,90082.0,0.67245579]
[1765150119298,0.00065125,90083.0,90082.0,0.69638579]
[1765150120234,0.00065125,90083.0,90082.0,0.74251977]
[1765150126572,0.00065125,90083.0,90082.0,0.69638579]
[1765150126805,0.00065125,90083.0,90082.0,0.71398579]
[1765150126997,0.00065125,90083.0,90082.0,0.75128977]
[1765150128515,0.03951,90132.0,90119.0,0.01109643]
[1765150128847,0.03951,90125.0,90124.0,0.06252299]
[1765150128986,0.03951,90125.0,90122.0,0.01109606]
[1765150129192,0.00029586,90130.0,90127.0,0.01109545]
[1765150129708,0.00029586,90130.0,90128.0,0.22190662]
[1765150131128,0.00029586,90130.0,90128.0,0.22390662]
[1765150132435,0.00029586,90130.0,90129.0,0.07762299]
[1765150132611,0.00029586,90130.0,90129.0,0.11653984]
[1765150132935,0.00029586,90130.0,90129.0,0.06413586]
[1765150133790,0.00029586,90130.0,90129.0,0.06613586]
[1765150137265,0.34965755,90130.0,90129.0,0.002]
[1765150137477,0.05005202,90130.0,90129.0,0.002]
[1765150137682,0.35106371,90130.0,90129.0,0.002]
[1765150139453,0.12916202,90130.0,90129.0,0.002]
[1765150139627,0.00170202,90130.0,90127.0,0.23300359]
[1765150140306,0.00170202,90130.0,90129.0,0.22190415]
[1765150140494,0.00170202,90130.0,90129.0,0.29673001]
[1765150140692,0.00170202,90130.0,90129.0,0.28604001]
[1765150140914,0.00170202,90130.0,90129.0,0.06252299]
[1765150140915,0.35106371,90130.0,90129.0,0.06252299]
[1765150141119,0.01109533,90128.0,90127.0,0.001]
[1765150141304,0.23300195,90128.0,90127.0,0.001]
[1765150141652,0.23300195,90128.0,90123.0,0.01109594]
[1765150141653,0.23300322,90128.0,90123.0,0.01109594]
[1765150141784,0.23300322,90128.0,90122.0,0.02982945]
[1765150141785,0.04835,90123.0,90122.0,0.02982945]
[1765150142008,0.03974,90124.0,90121.0,0.07361918]
[1765150142223,0.03974,90124.0,90117.0,0.01109668]
[1765150142224,0.22191889,90124.0,90122.0,0.02982945]
[1765150142427,0.09020594,90123.0,90120.0,0.02982945]
[1765150142654,0.07911,90123.0,90121.0,0.02982945]
[1765150142867,0.31001139,90122.0,90121.0,0.02982945]
[1765150143102,0.31001139,90122.0,90109.0,0.02982945]
[1765150143103,0.22195094,90110.0,90109.0,0.02982945]
[1765150143324,0.12746,90110.0,90109.0,0.09235244]
[1765150143532,0.04835,90110.0,90109.0,0.06252299]
[1765150143944,0.22195341,90109.0,90108.0,0.02982191]
[1765150144152,0.27030341,90109.0,90107.0,0.02982191]
[1765150144363,0.04835,90109.0,90108.0,0.02982191]
[1765150144564,0.31215072,90113.0,90109.0,0.01109767]
[1765150144565,0.01109717,90113.0,90109.0,0.01109767]
[1765150144964,0.0110973,90112.0,90109.0,0.02982191]
[1765150145168,0.01109656,90118.0,90115.0,0.01109693]
[1765150145380,0.23302794,90118.0,90114.0,0.01109705]
[1765150145531,0.23302508,90120.0,90109.0,0.02982191]
[1765150145532,0.01109717,90113.0,90109.0,0.02982191]
[1765150145736,0.22194602,90112.0,90109.0,0.02982191]
[1765150145935,0.04835,90110.0,90109.0,0.02982191]
[1765150146146,0.04835,90110.0,90106.0,0.02982191]
[1765150146147,0.23305108,90109.0,90106.0,0.02982191]
[1765150146342,0.01110013,90089.0,90086.0,0.02984041]
[1765150146541,0.01110013,90089.0,90085.0,0.02984041]
[1765150146542,0.22201007,90086.0,90085.0,0.02984041]
[1765150146749,0.22201007,90086.0,90083.0,0.02984041]
[1765150146988,0.23311057,90086.0,90084.0,0.02984041]
[1765150147183,0.23311057,90086.0,90080.0,0.22664545]
[1765150147184,0.0111005,90086.0,90083.0,0.02984041]
[1765150147652,0.01119628,90086.0,90083.0,0.02984041]
[1765150148158,0.01119628,90086.0,90080.0,0.22664545]
[1765150148159,0.23311316,90085.0,90082.0,0.02984041]
[1765150148497,0.01110075,90084.0,90082.0,0.06252299]
[1765150149120,0.01110075,90084.0,90082.0,0.0923634]
[1765150149539,0.22201747,90083.0,90082.0,0.0923634]
[1765150149741,0.22201747,90083.0,90082.0,0.06252299]
[1765150149949,0.01119628,90086.0,90082.0,0.06252299]
[1765150150163,0.01110062,90085.0,90082.0,0.06252299]
[1765150150361,0.01110062,90085.0,90082.0,0.06452299]
[1765150151131,0.222015,90084.0,90082.0,0.06452299]
[1765150151631,0.01110062,90085.0,90082.0,0.06452299]
[1765150151867,0.222015,90084.0,90082.0,0.06452299]
[1765150152045,0.01110062,90085.0,90082.0,0.06452299]
[1765150152251,0.01110062,90085.0,90082.0,0.06252299]
[1765150152478,0.23311575,90084.0,90081.0,0.06252299]
[1765150153081,0.01110075,90084.0,90081.0,0.06252299]
[1765150153283,9.578e-05,90086.0,90085.0,0.22201254]
[1765150153486,0.22201254,90085.0,90081.0,0.07362411]
[1765150153789,0.01110075,90084.0,90082.0,0.003]
[1765150153951,0.01110075,90084.0,90081.0,0.06252299]
[1765150154137,0.01110075,90084.0,90081.0,0.06452299]
[1765150154557,0.01119628,90086.0,90081.0,0.06252299]
[1765150154764,0.01119628,90086.0,90082.0,0.01110099]
[1765150154977,0.01110075,90084.0,90081.0,0.06452299]
[1765150155179,0.01110075,90084.0,90081.0,0.07362411]
[1765150155557,0.01110075,90084.0,90081.0,0.07562411]
[1765150155756,9.578e-05,90086.0,90083.0,0.23311834]
[1765150156789,9.578e-05,90086.0,90085.0,0.22201254]
[1765150157030,9.578e-05,90086.0,90083.0,0.23311834]
[1765150157164,9.578e-05,90086.0,90083.0,0.001]
[1765150157779,0.01119628,90086.0,90083.0,0.001]
[1765150158213,9.578e-05,90086.0,90084.0,0.222015]
[1765150160018,9.578e-05,90086.0,90084.0,0.223015]
[1765150160965,9.578e-05,90086.0,90084.0,0.222015]
[1765150161152,9.578e-05,90086.0,90084.0,0.225015]
[1765150161314,9.578e-05,90086.0,90085.0,0.22201254]
[1765150163056,9.578e-05,90086.0,90085.0,0.22501254]
[1765150163725,9.578e-05,90086.0,90085.0,0.23357541]
[1765150163939,9.578e-05,90086.0,90085.0,0.3030484]
[1765150165600,9.578e-05,90086.0,90085.0,0.64825238]
[1765150165822,9.578e-05,90086.0,90085.0,0.64525238]
[1765150165982,9.578e-05,90086.0,90085.0,0.64925238]
[1765150166176,9.578e-05,90086.0,90085.0,0.68902498]
[1765150166381,9.578e-05,90086.0,90085.0,0.68502498]
[1765150166737,9.578e-05,90086.0,90085.0,0.66025238]
[1765150166931,9.578e-05,90086.0,90085.0,0.66425238]
[1765150175439,9.578e-05,90086.0,90085.0,0.74379759]
[1765150175638,9.578e-05,90086.0,90085.0,0.66425238]
[1765150175819,9.578e-05,90086.0,90085.0,0.74401065]
[1765150177529,9.578e-05,90086.0,90085.0,0.66425238]
[1765150178927,9.578e-05,90086.0,90085.0,0.69155238]
[1765150184518,9.578e-05,90086.0,90085.0,0.67655238]
[1765150184879,9.578e-05,90086.0,90085.0,0.70655238]
[1765150185281,9.578e-05,90086.0,90085.0,0.70255238]
[1765150185724,9.578e-05,90086.0,90085.0,0.71155238]
[1765150188067,9.578e-05,90086.0,90085.0,0.7226498]
[1765150188435,9.578e-05,90086.0,90085.0,0.70044582]
[1765150188642,9.578e-05,90086.0,90085.0,0.72915238]
[1765150191645,9.578e-05,90086.0,90085.0,0.69015238]
[1765150191980,9.578e-05,90086.0,90085.0,0.72415238]